[Event "Reykjavik Open 2024"]
[Site "Reykjavik"]
[Date "2024.03.15"]
[Round "1.13"]
[White "Reimer, Philip"]
[Black "Klimkowski, Jan"]
[Result "0-1"]
[ECO "B12"]
[WhiteElo "2095"]
[BlackElo "2532"]
[Annotator "TA"]
[PlyCount "116"]
[EventDate "2024.03.12"]
[EventCountry "ISL"]
[SourceTitle "playchess.com"]
[Source "ChessBase"]
[SourceQuality "1"]
[TimeControl "40/5400+30:1800+30"]

{[%evp 12,116,22,22,26,27,14,16,11,14,13,27,18,14,5,-12,0,0,0,0,12,0,108,79,66,60,114,93,110,110,80,44,47,-9,-8,-14,-8,-6,-7,-3,-14,-7,-1,-9,-9,-11,0,-17,-4,-6,0,-4,0,-5,0,0,0,0,0,-4,-4,-6,-10,-18,-8,-16,-14,-17,0,-13,-6,-21,-6,-8,-7,-7,-5,-8,-11,-8,-8,-8,-5,-16,-8,-24,-16,-25,-25,-42,-40,-53,-53,-48,-57,-88,-88,-93,-77,-82,-94,-904,-853,-812,-801,-1236,-1163]} 1. e4 {[%emt 0:00:05]} c6 {[%emt 0:00:05]} 2. d4 {[%emt 0:00:09]} d5 {[%emt 0:00:06]} 3. e5 {[%emt 0:00:05]} Bf5 {[%emt 0:00:07]} 4. Nf3 {[%emt 0:00:07]} e6 {[%emt 0:00:13]} 5. Be2 {[%emt 0:00:06]} Ne7 {[%emt 0:00:17]} 6. O-O {[%emt 0:00:15]} c5 {[%emt 0:00:36]} 7. dxc5 {[%emt 0:04:35]} Nec6 {[%emt 0:02:02]} 8. Be3 {[%emt 0:04:49]} Nd7 {[%emt 0:00:41][%csl LRc5,LRe5]} 9. c4 {[%emt 0:16:52]} dxc4 {[%emt 0:04:10] Die Stellung ist ausgeglichen.} 10. Na3 {[%emt 0:03:36][%cal Bb1a3,Ba3c4,Bc4d6][%mdl 32]} Bxc5 {[%emt 0:08:12]} 11. Bxc5 {[%emt 0:10:24]} Nxc5 {[%emt 0:00:09]} 12. Nxc4 {[%emt 0:00:07]} O-O $1 {[%emt 0:01:34]} 13. Rc1 {[%emt 0:09:15]} Bg6 {[%emt 0:12:11]} 14. Nd6 {[%emt 0:06:19]} Qb6 {[%emt 0:02:03][%cal Of8d8]} 15. Nc4 $36 {[%emt 0:02:15][%mdl 2048] Weiss hat Druck.} Qd8 {[%emt 0:01:17]} 16. Nd6 {[%emt 0:01:54]} b6 {[%emt 0:07:07]} (16... Qb6 $11) 17. a3 {[%emt 0:03:31][%cal Ba2a3,Ba3b4][%mdl 32]} a5 {[%emt 0:02:51]} 18. Bb5 {[%emt 0:02:56]} Ne7 {[%emt 0:07:57]} (18... Na7 $14) 19. b4 {[%emt 0:02:44]} axb4 {[%emt 0:00:43]} 20. axb4 {[%emt 0:01:03]} Na6 {[%emt 0:03:02]} 21. Qd4 {[%emt 0:10:36]} Nc7 {[%emt 0:12:21] ...Nxb5 wäre nun fies.} 22. Qxb6 {[%emt 0:01:54]} ({Vorzuziehen ist} 22. Bc4 $14) 22... Ned5 $1 $11 {[%emt 0:00:08][%csl LRb4,LRb6]} 23. Qc5 {[%emt 0:07:56]} Nxb5 {[%emt 0:01:13]} 24. Nxb5 {[%emt 0:03:26]} Bd3 {[%emt 0:04:58]} 25. Rfe1 {[%emt 0:03:19]} Bxb5 {[%emt 0:10:52]} 26. Qxb5 {[%emt 0:00:02]} Rb8 {[%emt 0:00:04]} 27. Qc5 {[%emt 0:03:10]} Rxb4 {[%emt 0:02:37]} 28. g3 {[%emt 0:00:47]} Rb2 {[%emt 0:03:40]} 29. Rc2 {[%emt 0:00:19]} Rb7 {[%emt 0:02:38] Weiss muss nun ...Rc7 beachten.} 30. Qd4 {[%emt 0:00:39]} Rb3 {[%emt 0:00:26]} 31. Qe4 {[%emt 0:00:42]} Rb4 {[%emt 0:03:09]} 32. Rc4 {[%emt 0:01:33]} Rb8 {[%emt 0:01:14]} 33. Rec1 {[%emt 0:00:21]} h6 {[%emt 0:02:00]} 34. Kg2 {[%emt 0:00:25]} Qa5 {[%emt 0:00:52]} 35. Nd4 {[%emt 0:00:52]} Qa8 {[%emt 0:01:26][%cal Od5e3]} 36. Nf3 {[%emt 0:00:19]} Rb2 {[%emt 0:00:20]} 37. R4c2 {[%emt 0:00:36]} Rb3 {[%emt 0:00:30][%cal Od5e3] Und jetzt ...Ne3+! wäre schön.} 38. Rc6 {[%emt 0:00:19]} Nb4 {[%emt 0:03:53]} 39. R6c4 {[%emt 0:00:44]} Nd5 {[%emt 0:00:41]} (39... Qxe4 {vereinfacht} 40. Rxe4 Rb2 41. Rd1 Ra8) 40. Rc6 {[%emt 0:00:15]} Qb7 {[%emt 0:01:19]} 41. Nd2 {[%emt 0:06:48]} Rb5 {[%emt 0:03:04]} 42. Kg1 {[%emt 0:03:06]} Rd8 {[%emt 0:01:55]} 43. R6c2 {[%emt 0:02:26]} Qb8 {[%emt 0:03:54]} 44. Nf3 {[%emt 0:00:50]} Rb4 {[%emt 0:02:09]} 45. Rc4 {[%emt 0:00:48]} Rxc4 {[%emt 0:02:10]} 46. Qxc4 {[%emt 0:00:30]} Qb2 {[%emt 0:00:38]} 47. Re1 {[%emt 0:06:33]} Ra8 {[%emt 0:04:02]} 48. Qe2 {[%emt 0:02:19]} Qc3 {[%emt 0:00:52]} 49. Kg2 {[%emt 0:00:38]} Ra3 {[%emt 0:02:16]} 50. Rb1 {[%emt 0:03:09] Droht stark Rb8+.} g6 {[%emt 0:01:50]} 51. Qe4 {[%emt 0:02:10]} Ra2 {[%emt 0:01:45]} 52. Kg1 {[%emt 0:04:00]} Qc5 {[%emt 0:01:19]} 53. Qd4 {[%emt 0:01:42]} Qc2 {[%emt 0:01:11] Schwarz steht aktiver.} 54. Re1 {[%emt 0:00:41]} Kg7 {[%emt 0:00:52]} 55. Kg2 {[%emt 0:01:01]} Ne7 {[%emt 0:03:38] Droht ...Nf5 und aus.} 56. Rd1 $2 {[%emt 0:00:42][%mdl 8192] [#]} (56. Ra1 $17) 56... Nf5 $1 $19 {[%emt 0:00:31] Schwarz steht klar auf Gewinn.} 57. Qd2 {[%emt 0:00:59]} Qb3 {[%emt 0:01:05]} 58. Qd8 {[%emt 0:01:12] [#]} Qxd1 $3 {[%emt 0:00:22][%mdl 512] Gewichteter Fehlerwert: Weiß=0.32/Schwarz=0.07 (makellos) .  Verlustzug:     	Weiß=1     	---        Fehler:       	Weiß=1     	Schwarz=2     Ungenau:       	Weiß=2     	---        OK:         	Weiß=16    	Schwarz=25    Bester:       	---       	Schwarz=1     Stark:        	---       	Schwarz=2} 0-1

[Event "Reykjavik Open 2024"]
[Site "Reykjavik"]
[Date "2024.03.15"]
[Round "1.14"]
[White "Yilmazyerli, Mert"]
[Black "Pollack, Oscar"]
[Result "1-0"]
[ECO "C05"]
[WhiteElo "2526"]
[BlackElo "2092"]
[Annotator "TA"]
[PlyCount "79"]
[EventDate "2024.03.12"]
[EventCountry "ISL"]
[SourceTitle "playchess.com"]
[Source "ChessBase"]
[SourceQuality "1"]
[TimeControl "40/5400+30:1800+30"]

{[%evp 24,79,91,96,167,160,154,168,171,181,146,168,173,180,167,-56,-56,-238,-240,-242,-242,-206,-185,-169,-192,-179,-152,-243,-243,-475,-441,-455,-515,-539,-541,-531,-525,-526,-506,-915,-800,-1606,-166,-435,-166,-442,-416,-435,-435,-435,-435,-435,-435,-429,-380,-380,29985,29986]} 1. e4 {[%emt 0:00:05]} e6 {[%emt 0:00:18]} 2. d4 {[%emt 0:00:06]} d5 {[%emt 0:00:03]} 3. Nd2 {[%emt 0:00:07]} Nf6 {[%emt 0:00:10]} 4. e5 {[%emt 0:00:07]} Nfd7 {[%emt 0:00:10]} 5. c3 {[%emt 0:00:08][%cal Bc2c3,Bc3d4][%mdl 32]} c5 {[%emt 0:00:05]} 6. f4 {[%emt 0:00:04]} Nc6 {[%emt 0:01:29]} 7. Ndf3 {[%emt 0:00:10]} Qb6 {[%emt 0:02:42]} 8. g3 {[%emt 0:00:08]} cxd4 {[%emt 0:04:44]} 9. cxd4 {[%emt 0:00:07]} Bb4+ {[%emt 0:00:03]} 10. Kf2 {[%emt 0:00:07]} f6 {[%emt 0:03:39]} 11. Kg2 {[%emt 0:00:06]} fxe5 {[%emt 0:13:08]} 12. fxe5 {[%emt 0:00:11]} O-O {[%emt 0:04:11]} 13. Bd3 {[%emt 0:00:07][%cal Od3h7] Hoping for Bxh7+!} Nxd4 {[%emt 0:04:41]} (13... Be7 $16 {was called for.}) 14. Nxd4 {[%emt 0:00:07] Black must now prevent Ngf3.} Nxe5 {[%emt 0:00:05]} 15. Ngf3 {[%emt 0:04:48]} Nxf3 {[%emt 0:18:59] White is clearly better.} 16. Nxf3 {[%emt 0:00:05] Strongly threatening Rf1.} e5 {[%emt 0:00:29]} 17. Bc2 {[%emt 0:02:16][%cal Oh1f1] Threatens to win with Rf1!} (17. Nxe5 $2 Qf2#) 17... Bg4 {[%emt 0:09:08]} 18. Qxd5+ {[%emt 0:05:03]} Kh8 {[%emt 0:00:24]} 19. Be4 {[%emt 0:04:21]} (19. Nxe5 $2 Qf2#) ({Only move:} 19. Rf1 $18) 19... Qa6 $1 $15 {[%emt 0:05:29] ( -> ...Qe2+)} 20. Rf1 $2 {[%emt 0:43:56] [#]} (20. Qxb7 $2 Qe2+ 21. Kg1 Bc5+) (20. Bd3 $1 $15 Rad8 21. Bxa6 (21. Qxe5 $2 Bxf3+ 22. Kh3 Rxd3 $19) 21... Rxd5 22. Be2 (22. Bxb7 $2 Bxf3+ 23. Kh3 Bxh1 $19)) 20... Bh3+ $1 $40 {[%emt 0:06:33][%mdl 640] Black wants a kill.} 21. Kxh3 {[%emt 0:00:05]} Qxf1+ {[%emt 0:00:04]} 22. Kg4 {[%emt 0:05:21] [#]} h5+ $1 {[%emt 0:04:08][%mdl 512]} 23. Kh4 {[%emt 0:04:37]} (23. Kxh5 $2 Rxf3 24. Kg4 (24. Bxf3 $2 Qh3+ 25. Kg6 Re8 $19) 24... Rf2 $19) 23... Be7+ $1 {[%emt 0:00:53]} 24. Bg5 {[%emt 0:03:41]} Bxg5+ {[%emt 0:00:05]} (24... Qxa1 $2 25. Bxe7 Rxf3 26. Qxe5 $18 (26. Bxf3 Qxb2 27. Kh3 Qc3 $18) (26. Bxf3 Qxb2 27. Kh3 Qc3 $18)) 25. Nxg5 {[%emt 0:01:48]} (25. Kxg5 $17 Qxa1 26. Nxe5 Qc1+ (26... Qxb2 27. Ng6+ Kh7 28. Nxf8+ Kh8 29. Ng6+ Kh7 30. Ne5+ Kh8 31. Nf7+ Kg8 32. Nh6+ Kh8 33. Qg8+ Rxg8 34. Nf7#) 27. Kh4) 25... Qxa1 {[%emt 0:00:24]} 26. Qxb7 {[%emt 0:22:54]} (26. Nf7+ Rxf7 27. Qxf7) 26... Qf1 $1 {[%emt 0:04:05] And now ...Qf2 would win.} ({And not} 26... Qxa2 27. Qc6 Rfe8 (27... Qxb2 28. Qg6) 28. Qg6 $11) 27. Qc6 {[%emt 0:02:30]} Qf6 {[%emt 0:00:40]} 28. Qxf6 {[%emt 0:00:28]} gxf6 {[%emt 0:00:05]} 29. Ne6 {[%emt 0:00:03]} Rab8 {[%emt 0:00:58]} 30. Nxf8 {[%emt 0:00:05]} Rxf8 {[%emt 0:00:06]} 31. Kxh5 {[%emt 0:00:38][%mdl 4096] Endgame. KR-KB} (31. Bf3 $142) 31... f5 {[%emt 0:00:14]} 32. Bd5 {[%emt 0:00:24]} f4 $2 {[%emt 0:00:36]} (32... e4 33. Kg5 Rd8 34. Kxf5 e3 (34... Rxd5+ $2 35. Kxe4 Rd2 36. b4 $19)) 33. Kg4 $2 {[%emt 0:00:28]} (33. gxf4 {was forced.} Rxf4 (33... exf4 $2 34. Kg4 $19) 34. Kg5) 33... Kg7 $2 {[%emt 0:00:34]} (33... fxg3 34. hxg3 Kg7) 34. b3 $2 {[%emt 0:01:22]} (34. gxf4 {only move.} Rxf4+ 35. Kg5) 34... Rd8 {[%emt 0:00:51]} 35. Be4 {[%emt 0:00:26] [#]} fxg3 {[%emt 0:00:37]} 36. hxg3 {[%emt 0:00:05]} Kf6 {[%emt 0:00:11]} 37. Kf3 {[%emt 0:00:16]} Kg5 {[%emt 0:00:23]} 38. g4 {[%emt 0:01:05]} Rc8 {[%emt 0:00:25] ...Rc3+ is the strong threat.} 39. Bf5 {[%emt 0:00:16] [#]} Kf6 $4 {[%emt 0:01:22][%mdl 8192]} 40. Bxc8 {[%emt 0:00:02] Weighted Error Value: White=0.93/Black=0.56.  Loses game:     	White=1     	---        Missed win:     	White=1     	Black=1      Mistake:       	White=4     	---        Inaccurate:     	White=1     	---        OK:         	White=7     	Black=6      Best:        	White=5     	Black=6      Strong:       	---       	Black=3      Brilliant:      	---       	Black=1} 1-0

[Event "Reykjavik Open 2024"]
[Site "Reykjavik"]
[Date "2024.03.15"]
[Round "1.15"]
[White "Harish, Neeraj"]
[Black "Krzyzanowski, Marcin"]
[Result "1/2-1/2"]
[ECO "B32"]
[WhiteElo "2090"]
[BlackElo "2524"]
[Annotator "RC"]
[PlyCount "141"]
[EventDate "2024.03.12"]
[EventCountry "ISL"]
[SourceTitle "playchess.com"]
[Source "ChessBase"]
[SourceQuality "1"]
[TimeControl "40/5400+30:1800+30"]

1. e4 {[%emt 0:00:07]} c5 {[%emt 0:00:09]} 2. Nf3 {[%emt 0:00:14]} Nc6 {[%emt 0:00:17]} 3. d4 {[%emt 0:00:19]} cxd4 {[%emt 0:00:07]} 4. Nxd4 {[%emt 0:00:07]} e5 {[%emt 0:00:20]} 5. Nb5 {[%emt 0:00:12]} d6 {[%emt 0:00:06]} 6. c4 {[%emt 0:00:22]} Be6 {[%emt 0:00:41]} 7. Bd3 {[%emt 0:01:47]} g6 {[%emt 0:00:24]} 8. O-O {[%emt 0:00:36]} Bg7 {[%emt 0:02:50]} 9. Bc2 {[%emt 0:08:00]} Bf8 {[%emt 0:07:42]} 10. b3 {[%emt 0:10:52]} a6 {[%emt 0:01:30]} 11. N5c3 {[%emt 0:00:15]} Nf6 {[%emt 0:00:35]} 12. Nd5 {[%emt 0:06:24]} Nd4 {[%emt 0:01:42]} 13. Nbc3 {[%emt 0:07:45]} Bg7 {[%emt 0:02:10]} 14. Be3 {[%emt 0:04:55]} O-O {[%emt 0:06:11]} 15. f3 {[%emt 0:04:09]} Rc8 {[%emt 0:02:28]} 16. Bd3 {[%emt 0:01:11]} Nxd5 {[%emt 0:03:04]} 17. Nxd5 {[%emt 0:00:25]} f5 {[%emt 0:03:19]} 18. exf5 {[%emt 0:06:45]} Nxf5 {[%emt 0:05:20]} 19. Bb6 {[%emt 0:05:40]} Qg5 {[%emt 0:03:51]} 20. Be4 {[%emt 0:01:18]} Kh8 {[%emt 0:03:16]} 21. Qe1 {[%emt 0:11:21]} Bd7 {[%emt 0:05:27]} 22. Rd1 {[%emt 0:01:45]} Bc6 {[%emt 0:01:49]} 23. Qd2 {[%emt 0:07:06]} Bh6 {[%emt 0:05:17]} 24. Qxg5 {[%emt 0:01:03]} Bxg5 {[%emt 0:00:01]} 25. Rd3 {[%emt 0:00:14]} Bd8 {[%emt 0:01:09]} 26. Rfd1 {[%emt 0:04:18]} Kg7 {[%emt 0:10:17]} 27. Bxd8 {[%emt 0:04:52]} Rcxd8 {[%emt 0:04:45]} 28. Bxf5 {[%emt 0:05:18]} Rxf5 {[%emt 0:02:14]} 29. Ne3 {[%emt 0:00:33]} Rg5 {[%emt 0:10:36]} 30. Rxd6 {[%emt 0:02:04]} Rf8 {[%emt 0:00:21]} 31. h4 {[%emt 0:01:44]} Rh5 {[%emt 0:00:34]} 32. Ng4 {[%emt 0:00:17]} e4 {[%emt 0:01:31]} 33. fxe4 {[%emt 0:01:07]} Rxh4 {[%emt 0:06:18]} 34. Ne5 {[%emt 0:00:51]} Bxe4 {[%emt 0:04:52]} 35. Rd7+ {[%emt 0:01:37]} Kg8 {[%emt 0:01:16]} 36. Re7 {[%emt 0:00:33]} Bf5 {[%emt 0:03:26]} 37. Rxb7 {[%emt 0:00:18]} Re8 {[%emt 0:00:22]} 38. Nf3 {[%emt 0:00:59]} Rhe4 {[%emt 0:01:22]} 39. c5 {[%emt 0:00:41]} g5 {[%emt 0:01:10]} 40. c6 {[%emt 0:00:28]} g4 {[%emt 0:00:18]} 41. Nh4 {[%emt 0:09:54]} Bc8 {[%emt 0:07:08]} 42. Rb8 {[%emt 0:06:02]} g3 {[%emt 0:01:42]} 43. Nf3 {[%emt 0:00:11]} Re2 {[%emt 0:07:55]} 44. Rb4 {[%emt 0:04:14]} Rxa2 {[%emt 0:02:04]} 45. Rbd4 {[%emt 0:03:49]} Rc2 {[%emt 0:03:04]} 46. Rd6 {[%emt 0:00:55]} Bg4 {[%emt 0:02:09]} 47. Rf1 {[%emt 0:02:38]} a5 {[%emt 0:05:06]} 48. Nd4 {[%emt 0:01:34]} Rc5 {[%emt 0:00:07]} 49. Rdf6 {[%emt 0:02:14]} h5 {[%emt 0:03:07]} 50. Nf5 {[%emt 0:03:34]} Bxf5 {[%emt 0:01:38]} 51. R6xf5 {[%emt 0:00:12]} Rxc6 {[%emt 0:00:27]} 52. Rg5+ {[%emt 0:00:16]} Kh7 {[%emt 0:00:10]} 53. Rxg3 {[%emt 0:00:45]} Re5 {[%emt 0:00:59]} 54. Rf7+ {[%emt 0:00:28]} Kh6 {[%emt 0:00:07]} 55. Rf8 {[%emt 0:00:23]} Rg6 {[%emt 0:01:26]} 56. Rh8+ {[%emt 0:00:27]} Kg7 {[%emt 0:00:01]} 57. Rg8+ {[%emt 0:00:07]} Kxg8 {[%emt 0:00:03]} 58. Rxg6+ {[%emt 0:00:06]} Kf7 {[%emt 0:00:08]} 59. Ra6 {[%emt 0:00:14]} Rb5 {[%emt 0:00:10]} 60. Kf2 {[%emt 0:02:04]} Ke7 {[%emt 0:00:03]} 61. Ke2 {[%emt 0:00:39]} Rg5 {[%emt 0:00:26]} 62. Kf3 {[%emt 0:00:42]} Kd7 {[%emt 0:00:13]} 63. Ke4 {[%emt 0:01:02]} Kc7 {[%emt 0:01:07]} 64. Rh6 {[%emt 0:00:39]} Rb5 {[%emt 0:00:55]} 65. Kd4 {[%emt 0:00:11]} Rxb3 {[%emt 0:02:03]} 66. Rxh5 {[%emt 0:00:09]} a4 {[%emt 0:00:32]} 67. Ra5 {[%emt 0:00:28]} Rg3 {[%emt 0:00:37]} 68. Kc4 {[%emt 0:00:18]} Rxg2 {[%emt 0:00:14]} 69. Rxa4 {[%emt 0:00:07]} Rg4+ {[%emt 0:00:02]} 70. Kb3 {[%emt 0:00:16]} Rxa4 {[%emt 0:00:02]} 71. Kxa4 {[%emt 0:00:39]} 1/2-1/2

[Event "Reykjavik Open 2024"]
[Site "Reykjavik"]
[Date "2024.03.15"]
[Round "1.16"]
[White "Gokerkan, Cem Kaan"]
[Black "Fossheim, Yngve"]
[Result "1-0"]
[ECO "B31"]
[WhiteElo "2523"]
[BlackElo "2090"]
[Annotator "ChessBase"]
[PlyCount "85"]
[EventDate "2024.03.12"]
[EventCountry "ISL"]
[SourceTitle "playchess.com"]
[Source "ChessBase"]
[SourceQuality "1"]
[TimeControl "40/5400+30:1800+30"]

1. e4 {[%emt 0:00:23]} c5 {[%emt 0:00:09]} 2. Nf3 {[%emt 0:00:09]} Nc6 {[%emt 0:00:05]} 3. Bb5 {[%emt 0:00:24]} g6 {[%emt 0:00:08]} 4. Bxc6 {[%emt 0:00:20]} dxc6 {[%emt 0:00:03]} 5. d3 {[%emt 0:00:06]} Bg7 {[%emt 0:00:39]} 6. O-O {[%emt 0:00:35]} Nf6 {[%emt 0:01:00]} 7. Re1 {[%emt 0:05:40]} Nd7 {[%emt 0:08:37]} 8. h3 {[%emt 0:01:50]} e5 {[%emt 0:02:07]} 9. a4 {[%emt 0:16:34]} a5 {[%emt 0:00:06]} 10. Na3 {[%emt 0:00:16]} Qc7 {[%emt 0:04:20]} 11. Be3 {[%emt 0:06:04]} b6 {[%emt 0:05:46]} 12. Qd2 {[%emt 0:06:25]} Nf8 {[%emt 0:09:37]} 13. Bh6 {[%emt 0:03:53]} f6 {[%emt 0:01:27]} 14. c3 {[%emt 0:11:28]} Bxh6 {[%emt 0:13:02]} 15. Qxh6 {[%emt 0:00:14]} Ne6 {[%emt 0:03:20]} 16. d4 {[%emt 0:02:09]} cxd4 {[%emt 0:02:28]} 17. cxd4 {[%emt 0:00:09]} exd4 {[%emt 0:05:57]} 18. e5 {[%emt 0:00:18]} f5 {[%emt 0:01:33]} 19. Nc4 {[%emt 0:09:10]} Ba6 {[%emt 0:05:33]} 20. Nd6+ {[%emt 0:00:17]} Kd8 {[%emt 0:01:13]} 21. Nxd4 {[%emt 0:05:59]} Nxd4 {[%emt 0:00:18]} 22. Qh4+ {[%emt 0:00:02]} Qe7 {[%emt 0:00:54]} 23. Qxd4 {[%emt 0:00:05]} c5 {[%emt 0:03:01]} 24. Qf4 {[%emt 0:04:18]} Kc7 {[%emt 0:13:54]} 25. Nf7 {[%emt 0:01:45]} Rhf8 {[%emt 0:04:04]} 26. e6+ {[%emt 0:00:08]} Kb7 {[%emt 0:01:46]} 27. Rad1 {[%emt 0:00:18]} Rxf7 {[%emt 0:00:34]} 28. exf7 {[%emt 0:00:23]} Qxf7 {[%emt 0:00:10]} 29. Qf3+ {[%emt 0:01:10]} Ka7 {[%emt 0:00:10]} 30. Qc6 {[%emt 0:00:05]} Bc8 {[%emt 0:00:09]} 31. Qd6 {[%emt 0:01:26]} Bb7 {[%emt 0:01:24]} 32. Re6 {[%emt 0:00:31]} Rc8 {[%emt 0:00:43]} 33. Qxb6+ {[%emt 0:00:05]} Kb8 {[%emt 0:00:10]} 34. Red6 {[%emt 0:00:48]} Qc7 {[%emt 0:01:14]} 35. Qb5 {[%emt 0:00:32]} c4 {[%emt 0:01:44]} 36. Rd7 {[%emt 0:00:46]} Qc6 {[%emt 0:00:13]} 37. Qxc6 {[%emt 0:00:09]} Bxc6 {[%emt 0:00:16]} 38. Rxh7 {[%emt 0:00:05]} Bxa4 {[%emt 0:01:51]} 39. Ra1 {[%emt 0:00:05]} Bc6 {[%emt 0:00:21]} 40. Rxa5 {[%emt 0:00:17]} Rd8 {[%emt 0:00:31]} 41. Ra6 {[%emt 0:30:49]} Rd1+ {[%emt 0:31:19]} 42. Kh2 {[%emt 0:00:21]} Bd5 {[%emt 0:00:07]} 43. Rxg6 {[%emt 0:00:18]} 1-0

[Event "Reykjavik Open 2024"]
[Site "Reykjavik"]
[Date "2024.03.15"]
[Round "1.17"]
[White "Sivanandan, Bodhana"]
[Black "Prraneeth Vuppala"]
[Result "0-1"]
[ECO "B23"]
[WhiteElo "2088"]
[BlackElo "2506"]
[Annotator "TA"]
[PlyCount "120"]
[EventDate "2024.03.12"]
[EventCountry "ISL"]
[SourceTitle "playchess.com"]
[Source "ChessBase"]
[SourceQuality "1"]
[TimeControl "40/5400+30:1800+30"]

{[%evp 9,119,8,10,0,9,-12,-16,-17,0,0,0,-4,0,-3,-17,-15,-4,-9,0,-12,-11,-18,0,-28,-26,-84,-64,-72,-34,-127,-139,-154,-160,-206,-217,-293,-308,-316,-293,-300,-225,-231,-241,-221,-202,-203,-199,-194,-150,-183,-169,-172,-174,-174,-126,-170,-156,-281,-220,-230,-217,-438,-438,-556,-556,-513,-508,-876,-856,-793,-766,-2250,-1834,-6004,-5956,-5695,-5612,-29975,-29976,-29976,-29977,-29979,-29980,-29980,-29981,-29984,-29985,-29985,-29986,-29986,-29987,-29987,-29988,-29988,-29989,-29989,-29990,-29992,-29993,-29993,-29994,-29994,-29995,-29995,-29996,-29996,-29997,-29997,-29997,-29998,-29999,-29999]} 1. e4 {[%emt 0:00:03]} c5 {[%emt 0:00:50]} 2. Nc3 {[%emt 0:00:32]} d6 {[%emt 0:01:14]} 3. f4 {[%emt 0:00:39]} g6 {[%emt 0:00:11]} 4. Nf3 {[%emt 0:00:39]} Bg7 {[%emt 0:00:22]} 5. Bb5+ {[%emt 0:01:02]} Bd7 {[%emt 0:01:00]} 6. a4 {[%emt 0:00:54]} Nc6 {[%emt 0:01:05]} 7. d3 {[%emt 0:00:54]} a6 {[%emt 0:01:41]} 8. Bxc6 {[%emt 0:01:37] The position is equal.} Bxc6 {[%emt 0:00:08]} 9. a5 {[%emt 0:00:29]} Nf6 {[%emt 0:00:33]} 10. O-O {[%emt 0:00:49]} O-O {[%emt 0:00:15]} 11. Qe1 {[%emt 0:00:20]} e6 {[%emt 0:05:42]} 12. e5 {[%emt 0:05:12]} dxe5 {[%emt 0:01:03]} 13. Nxe5 {[%emt 0:00:30]} Rc8 {[%emt 0:00:26]} 14. Be3 {[%emt 0:02:13]} Nd7 {[%emt 0:01:08]} 15. Nc4 {[%emt 0:01:00]} Qc7 {[%emt 0:10:01]} 16. Qf2 {[%emt 0:09:15]} Bd5 {[%emt 0:08:33]} 17. Na4 {[%emt 0:10:30]} (17. Nd2 $11) 17... Bxc4 $17 {[%emt 0:06:28]} 18. dxc4 {[%emt 0:00:22]} Rfd8 {[%emt 0:00:30]} (18... Qxa5 $5 19. Nxc5 Qc7 20. Nxd7 Qxd7 $11) 19. Rfd1 {[%emt 0:06:52]} (19. Qf3 $15) 19... Qxa5 {[%emt 0:02:54]} 20. Bd2 {[%emt 0:14:40]} Qc7 {[%emt 0:02:57]} 21. Qf3 {[%emt 0:03:08]} (21. Qe2 $17) 21... b5 $19 {[%emt 0:02:12]} 22. cxb5 {[%emt 0:01:49]} axb5 {[%emt 0:00:11]} 23. Nc3 {[%emt 0:00:35]} b4 {[%emt 0:00:57]} 24. Na4 {[%emt 0:02:38]} Nb6 {[%emt 0:02:24]} 25. Nxb6 {[%emt 0:07:23]} Qxb6 {[%emt 0:00:08]} 26. c3 {[%emt 0:01:25]} h5 {[%emt 0:06:05]} 27. Be1 {[%emt 0:07:10]} Qb5 {[%emt 0:17:12]} 28. h3 {[%emt 0:05:17]} Bf6 {[%emt 0:03:13]} 29. Rac1 {[%emt 0:05:11]} b3 {[%emt 0:08:44]} 30. Kh2 {[%emt 0:04:38]} c4 {[%emt 0:00:26]} 31. Bf2 {[%emt 0:02:05]} Qf5 {[%emt 0:03:30]} ({Better is} 31... Rxd1 $19 32. Rxd1 e5) 32. Be3 {[%emt 0:03:03]} h4 {[%emt 0:01:58]} 33. Qf2 {[%emt 0:01:21]} (33. Kg1 $17 {keeps fighting.}) 33... Rd5 {[%emt 0:05:39]} 34. Rxd5 {[%emt 0:00:31]} Qxd5 {[%emt 0:01:54]} 35. Bd4 $2 {[%emt 0:01:37] [#]} (35. Qf3) 35... Bxd4 {[%emt 0:00:27]} 36. Qxd4 {[%emt 0:00:17]} Qxd4 {[%emt 0:01:06]} 37. cxd4 {[%emt 0:00:07][%mdl 4096] Endgame. KR-KR} Kg7 {[%emt 0:00:27]} 38. Kg1 {[%emt 0:00:37]} (38. Rc3 $142) 38... Kf6 {[%emt 0:00:22]} 39. Kf2 {[%emt 0:00:07]} Kf5 {[%emt 0:00:04]} 40. Kf3 {[%emt 0:01:31] [#]} c3 $1 {[%emt 0:00:23][%mdl 512]} 41. bxc3 {[%emt 0:31:23]} (41. Rb1 c2) 41... b2 {[%emt 0:30:07]} 42. Rb1 {[%emt 0:00:00]} Rxc3+ {[%emt 0:00:00]} 43. Kf2 {[%emt 0:00:00]} Rb3 {[%emt 0:00:00] Black mates.} 44. Ke2 {[%emt 0:00:00]} Kxf4 {[%emt 0:00:00]} 45. Kd2 {[%emt 0:00:00]} Kg3 {[%emt 0:00:00]} 46. Kc2 {[%emt 0:00:00]} Rb8 {[%emt 0:00:00]} 47. Rxb2 {[%emt 0:00:00]} Rxb2+ {[%emt 0:00:00]} 48. Kxb2 {[%emt 0:00:00]} Kxg2 {[%emt 0:00:00] KP-KP} 49. Kc3 {[%emt 0:00:00]} Kxh3 {[%emt 0:00:00]} 50. Kd3 {[%emt 0:00:00]} Kg3 {[%emt 0:00:00]} 51. Ke4 {[%emt 0:00:00]} h3 {[%emt 0:00:00]} 52. Ke5 {[%emt 0:00:00]} h2 {[%emt 0:00:00]} 53. Kf6 {[%emt 0:00:00]} h1=Q {[%emt 0:00:00]} 54. Kxf7 {[%emt 0:00:00]} Qd5 {[%emt 0:00:00]} 55. Kxg6 {[%emt 0:00:00]} Qf5+ {[%emt 0:00:00]} 56. Kg7 {[%emt 0:00:00]} Kg4 {[%emt 0:00:00]} 57. Kg8 {[%emt 0:00:00]} Kg5 {[%emt 0:00:00]} 58. Kg7 {[%emt 0:00:00]} Qf6+ {[%emt 0:00:00]} 59. Kg8 {[%emt 0:00:00]} Kg6 {[%emt 0:00:00][%cal Rf6d8]} 60. d5 {[%emt 0:00:00]} Qg7# {[%emt 0:00:00] Weighted Error Value: White=0.51/Black=0.09 (flawless) .  Mistake:       	White=6     	Black=1      Inaccurate:     	White=3     	Black=1      OK:         	White=10    	Black=11     Best:        	---       	Black=4} 0-1